[Event "Late-Titled-Tuesday-Blitz-January-23-2024"]
[Site "Chess.com"]
[Date "2024.01.23"]
[Round "5"]
[White "katharinareinecke"]
[Black "AkatsukiLogHorizon"]
[Result "0-1"]
[WhiteElo "2005"]
[BlackElo "2249"]
[TimeControl "180+1"]
[EndTime "14:55:19 PST"]
[Termination "AkatsukiLogHorizon won on time"]

1. d4 {[%clk 0:02:40]} 1... Nf6 {[%clk 0:02:56.9]} 2. Nf3 {[%clk 0:02:39.3]}
2... g6 {[%clk 0:02:55.5]} 3. c4 {[%clk 0:02:39.3]} 3... Bg7 {[%clk 0:02:52.4]}
4. g3 {[%clk 0:02:39.1]} 4... O-O {[%clk 0:02:48.2]} 5. Bg2 {[%clk 0:02:38]}
5... d5 {[%clk 0:02:47.1]} 6. cxd5 {[%clk 0:02:33.1]} 6... Nxd5 {[%clk
0:02:44.2]} 7. O-O {[%clk 0:02:33]} 7... Bf5 {[%clk 0:02:39.8]} 8. e3 {[%clk
0:02:26.3]} 8... c6 {[%clk 0:02:16.9]} 9. Nh4 {[%clk 0:02:25.4]} 9... Bxb1
{[%clk 0:02:09.8]} 10. Rxb1 {[%clk 0:02:23.9]} 10... Nd7 {[%clk 0:02:08.9]} 11.
f4 {[%clk 0:02:20.7]} 11... f5 {[%clk 0:02:05.1]} 12. Nf3 {[%clk 0:02:18.6]}
12... e6 {[%clk 0:02:00.7]} 13. Bd2 {[%clk 0:02:10.1]} 13... N7f6 {[%clk
0:01:59.3]} 14. Ne5 {[%clk 0:02:03.3]} 14... Qe7 {[%clk 0:01:53.3]} 15. b4
{[%clk 0:01:58]} 15... Nd7 {[%clk 0:01:46.5]} 16. Qb3 {[%clk 0:01:50.5]} 16...
Nxe5 {[%clk 0:01:45.6]} 17. dxe5 {[%clk 0:01:48.2]} 17... Rfd8 {[%clk
0:01:43.3]} 18. Rfd1 {[%clk 0:01:42.6]} 18... Qc7 {[%clk 0:01:39.1]} 19. Rbc1
{[%clk 0:01:36.4]} 19... Qb6 {[%clk 0:01:37.6]} 20. a4 {[%clk 0:01:22.5]} 20...
Bf8 {[%clk 0:01:36.4]} 21. a5 {[%clk 0:01:16.7]} 21... Qc7 {[%clk 0:01:26.1]}
22. b5 {[%clk 0:01:13]} 22... c5 {[%clk 0:01:21.2]} 23. b6 {[%clk 0:01:02.3]}
23... axb6 {[%clk 0:01:20.1]} 24. axb6 {[%clk 0:01:01.7]} 24... Qd7 {[%clk
0:01:12.5]} 25. Be1 {[%clk 0:00:47.5]} 25... Qc6 {[%clk 0:00:49.3]} 26. Bf2
{[%clk 0:00:37.9]} 26... Rd7 {[%clk 0:00:38.1]} 27. e4 {[%clk 0:00:35.2]} 27...
fxe4 {[%clk 0:00:36.9]} 28. Bxe4 {[%clk 0:00:35.1]} 28... Rad8 {[%clk
0:00:33.2]} 29. Rd3 {[%clk 0:00:29.2]} 29... Qc8 {[%clk 0:00:21.3]} 30. Rdd1
{[%clk 0:00:20.8]} 30... Qa8 {[%clk 0:00:20.8]} 31. Bxd5 {[%clk 0:00:20.2]}
31... Rxd5 {[%clk 0:00:20.2]} 32. Rxd5 {[%clk 0:00:19.3]} 32... Rxd5 {[%clk
0:00:20.2]} 33. Rd1 {[%clk 0:00:18.3]} 33... Qd8 {[%clk 0:00:16.5]} 34. Rxd5
{[%clk 0:00:17.5]} 34... Qxd5 {[%clk 0:00:16.6]} 35. Qb5 {[%clk 0:00:14.6]}
35... Kf7 {[%clk 0:00:14.7]} 36. Kf1 {[%clk 0:00:10.5]} 36... Qh1+ {[%clk
0:00:12.5]} 37. Ke2 {[%clk 0:00:10.1]} 37... Qe4+ {[%clk 0:00:12.1]} 38. Be3
{[%clk 0:00:08.1]} 38... Qc2+ {[%clk 0:00:09.3]} 39. Kf3 {[%clk 0:00:07.9]}
39... Qd1+ {[%clk 0:00:08.8]} 40. Kf2 {[%clk 0:00:07.2]} 40... Qd5 {[%clk
0:00:07.3]} 41. Ke2 {[%clk 0:00:05.8]} 41... Be7 {[%clk 0:00:07.6]} 42. Bf2
{[%clk 0:00:04.2]} 42... Bd8 {[%clk 0:00:06.2]} 43. Be3 {[%clk 0:00:03.7]} 43...
Be7 {[%clk 0:00:04.3]} 44. Bf2 {[%clk 0:00:02.9]} 44... h5 {[%clk 0:00:04.2]}
45. Be3 {[%clk 0:00:03]} 45... c4 {[%clk 0:00:04.1]} 46. Bf2 {[%clk 0:00:02.3]}
46... Qxb5 {[%clk 0:00:03.9]} 0-1

[Event "Late-Titled-Tuesday-Blitz-January-23-2024"]
[Site "Chess.com"]
[Date "2024.01.23"]
[Round "5"]
[White "GMG"]
[Black "diamonds13"]
[Result "1-0"]
[WhiteElo "2782"]
[BlackElo "2375"]
[TimeControl "180+1"]
[EndTime "14:55:20 PST"]
[Termination "GMG won by resignation"]

1. Nf3 {[%clk 0:02:58.3]} 1... c5 {[%clk 0:02:42.5]} 2. c4 {[%clk 0:02:57.4]}
2... Nc6 {[%clk 0:02:41]} 3. d4 {[%clk 0:02:57.8]} 3... cxd4 {[%clk 0:02:40.5]}
4. Nxd4 {[%clk 0:02:58.7]} 4... g6 {[%clk 0:02:40.5]} 5. e4 {[%clk 0:02:58.8]}
5... Bg7 {[%clk 0:02:40.8]} 6. Be3 {[%clk 0:02:59.4]} 6... d6 {[%clk 0:02:40.9]}
7. Nc3 {[%clk 0:02:59.2]} 7... Nf6 {[%clk 0:02:40.8]} 8. f3 {[%clk 0:02:59.4]}
8... O-O {[%clk 0:02:39.3]} 9. Qd2 {[%clk 0:02:58.8]} 9... Nxd4 {[%clk
0:02:28.2]} 10. Bxd4 {[%clk 0:02:58.4]} 10... Nd7 {[%clk 0:02:26.8]} 11. h4
{[%clk 0:02:53.1]} 11... h5 {[%clk 0:02:22.7]} 12. Bxg7 {[%clk 0:02:41.3]} 12...
Kxg7 {[%clk 0:02:21.9]} 13. O-O-O {[%clk 0:02:41.9]} 13... Nc5 {[%clk
0:02:07.2]} 14. e5 {[%clk 0:02:35.5]} 14... Bf5 {[%clk 0:01:56.9]} 15. exd6
{[%clk 0:02:32.4]} 15... exd6 {[%clk 0:01:54.5]} 16. Qd4+ {[%clk 0:02:06.4]}
16... Kg8 {[%clk 0:01:51.4]} 17. Nd5 {[%clk 0:01:58.1]} 17... Ne6 {[%clk
0:01:45.9]} 18. Nf6+ {[%clk 0:01:50.9]} 18... Kh8 {[%clk 0:01:43.9]} 19. Qc3
{[%clk 0:01:50.5]} 19... Ng7 {[%clk 0:01:42.8]} 20. g4 {[%clk 0:01:49.3]} 20...
hxg4 {[%clk 0:01:40.3]} 21. fxg4 {[%clk 0:01:48.9]} 21... Bxg4 {[%clk
0:01:39.6]} 22. Nxg4 {[%clk 0:01:47.1]} 22... f5 {[%clk 0:01:37.8]} 23. Ne5
{[%clk 0:01:40.6]} 23... Qf6 {[%clk 0:01:31.8]} 24. Nf3 {[%clk 0:01:40]} 24...
Qe7 {[%clk 0:01:23.6]} 25. Rg1 {[%clk 0:01:31.6]} 25... Rf6 {[%clk 0:01:20.5]}
26. Re1 {[%clk 0:01:31.2]} 26... Qf8 {[%clk 0:01:18.7]} 27. Bd3 {[%clk
0:01:25.8]} 27... d5 {[%clk 0:01:18.6]} 28. Kb1 {[%clk 0:01:20.3]} 28... dxc4
{[%clk 0:01:17.7]} 29. Bxc4 {[%clk 0:01:18.3]} 29... Rc8 {[%clk 0:01:18.1]} 30.
Qb3 {[%clk 0:01:17.5]} 30... Rb6 {[%clk 0:01:16.2]} 31. Qd3 {[%clk 0:01:03.1]}
31... Qb4 {[%clk 0:01:05.5]} 32. Bb3 {[%clk 0:01:02.9]} 32... a5 {[%clk
0:01:04.9]} 33. Qd4 {[%clk 0:00:37.4]} 33... Qxd4 {[%clk 0:00:45.9]} 34. Nxd4
{[%clk 0:00:37.2]} 34... Rb4 {[%clk 0:00:46.6]} 35. Ne6 {[%clk 0:00:35.4]} 35...
a4 {[%clk 0:00:38.7]} 36. Bc2 {[%clk 0:00:30.3]} 36... Rbc4 {[%clk 0:00:38.3]}
37. Bd3 {[%clk 0:00:27.9]} 37... Rxh4 {[%clk 0:00:33.3]} 38. Rxg6 {[%clk
0:00:23.9]} 38... Nxe6 {[%clk 0:00:32.9]} 39. Rgxe6 {[%clk 0:00:24.4]} 39... a3
{[%clk 0:00:28.5]} 40. bxa3 {[%clk 0:00:22.3]} 40... Rc3 {[%clk 0:00:21.7]} 41.
Bxf5 {[%clk 0:00:20.6]} 41... Rxa3 {[%clk 0:00:20]} 42. Rb6 {[%clk 0:00:19.9]}
42... Ra5 {[%clk 0:00:16.2]} 43. Rxb7 {[%clk 0:00:18.3]} 43... Ra8 {[%clk
0:00:07.5]} 44. Bc2 {[%clk 0:00:17.6]} 44... Rf8 {[%clk 0:00:06.8]} 45. Rbe7
{[%clk 0:00:14.6]} 45... Rh2 {[%clk 0:00:05.4]} 46. Re8 {[%clk 0:00:14.5]} 46...
Rxe8 {[%clk 0:00:05.8]} 47. Rxe8+ {[%clk 0:00:15.2]} 47... Kg7 {[%clk
0:00:06.3]} 48. a4 {[%clk 0:00:14.1]} 48... Kf7 {[%clk 0:00:07]} 49. Re1 {[%clk
0:00:13.7]} 49... Rh4 {[%clk 0:00:05.6]} 50. Kb2 {[%clk 0:00:14]} 50... Rb4+
{[%clk 0:00:05.9]} 51. Bb3+ {[%clk 0:00:14.4]} 51... Kf6 {[%clk 0:00:04.6]} 52.
Kc3 {[%clk 0:00:14.9]} 52... Rb7 {[%clk 0:00:04.4]} 53. a5 {[%clk 0:00:15.2]}
53... Rb8 {[%clk 0:00:03]} 54. Bc4 {[%clk 0:00:14.5]} 1-0

[Event "Late-Titled-Tuesday-Blitz-January-23-2024"]
[Site "Chess.com"]
[Date "2024.01.23"]
[Round "5"]
[White "platy3"]
[Black "angelgab3"]
[Result "1-0"]
[WhiteElo "2868"]
[BlackElo "2691"]
[TimeControl "180+1"]
[EndTime "14:55:21 PST"]
[Termination "platy3 won on time"]

1. e4 {[%clk 0:03:00.9]} 1... e5 {[%clk 0:02:59.8]} 2. Nf3 {[%clk 0:03:00.8]}
2... Nc6 {[%clk 0:03:00.5]} 3. Bc4 {[%clk 0:03:01.1]} 3... Nf6 {[%clk
0:03:00.1]} 4. d3 {[%clk 0:03:01.7]} 4... Bc5 {[%clk 0:02:59.8]} 5. a4 {[%clk
0:03:02.2]} 5... d6 {[%clk 0:03:00]} 6. O-O {[%clk 0:03:02.8]} 6... O-O {[%clk
0:03:00.6]} 7. Be3 {[%clk 0:03:03.2]} 7... Bxe3 {[%clk 0:02:57.1]} 8. fxe3
{[%clk 0:03:04.1]} 8... a5 {[%clk 0:02:58]} 9. h3 {[%clk 0:03:03.8]} 9... Be6
{[%clk 0:02:58.1]} 10. Bxe6 {[%clk 0:03:03.9]} 10... fxe6 {[%clk 0:02:59]} 11.
Nbd2 {[%clk 0:03:04.4]} 11... Qe8 {[%clk 0:02:57.6]} 12. c3 {[%clk 0:03:04.6]}
12... b6 {[%clk 0:02:56.6]} 13. Qb3 {[%clk 0:03:04.9]} 13... h6 {[%clk
0:02:53.9]} 14. Rf2 {[%clk 0:03:05.5]} 14... Nd7 {[%clk 0:02:54.1]} 15. d4
{[%clk 0:03:03.2]} 15... Kh8 {[%clk 0:02:44.5]} 16. Raf1 {[%clk 0:03:02.7]}
16... exd4 {[%clk 0:02:43.5]} 17. exd4 {[%clk 0:02:59.7]} 17... e5 {[%clk
0:02:43.7]} 18. Qc4 {[%clk 0:02:57.6]} 18... Nf6 {[%clk 0:02:41.2]} 19. d5
{[%clk 0:02:49.8]} 19... Nd8 {[%clk 0:02:11.2]} 20. Qxc7 {[%clk 0:02:43.6]}
20... Qxa4 {[%clk 0:02:11.8]} 21. Nh4 {[%clk 0:02:27.8]} 21... Rf7 {[%clk
0:01:25.9]} 22. Qxd6 {[%clk 0:02:26.1]} 22... Nxe4 {[%clk 0:01:24.3]} 23. Nxe4
{[%clk 0:02:17.1]} 23... Qxe4 {[%clk 0:01:25.2]} 24. Ng6+ {[%clk 0:02:07.3]}
24... Kh7 {[%clk 0:01:12.5]} 25. Nxe5 {[%clk 0:01:04.6]} 25... Rxf2 {[%clk
0:01:05.2]} 26. Rxf2 {[%clk 0:01:05.5]} 26... Nb7 {[%clk 0:01:02.1]} 27. Qxb6
{[%clk 0:01:01.4]} 27... Qe1+ {[%clk 0:00:43.1]} 28. Rf1 {[%clk 0:00:58.9]}
28... Qxe5 {[%clk 0:00:43.6]} 29. Qxb7 {[%clk 0:00:58.7]} 29... Rb8 {[%clk
0:00:44.3]} 30. Qa6 {[%clk 0:00:32.1]} 30... Qxd5 {[%clk 0:00:29.1]} 31. Qe2
{[%clk 0:00:29.7]} 31... a4 {[%clk 0:00:20.5]} 32. Qc2+ {[%clk 0:00:29.2]} 32...
Kg8 {[%clk 0:00:21.1]} 33. Rf2 {[%clk 0:00:24.6]} 33... a3 {[%clk 0:00:20.1]}
34. bxa3 {[%clk 0:00:24.1]} 34... Ra8 {[%clk 0:00:20.3]} 35. a4 {[%clk
0:00:23.4]} 35... Qc4 {[%clk 0:00:19.2]} 36. Rd2 {[%clk 0:00:15.1]} 36... Qc5+
{[%clk 0:00:13.9]} 37. Kh1 {[%clk 0:00:14.4]} 37... Re8 {[%clk 0:00:13.3]} 38.
Rd1 {[%clk 0:00:10.7]} 38... Ra8 {[%clk 0:00:12]} 39. Qb3+ {[%clk 0:00:09.7]}
39... Kh8 {[%clk 0:00:11.6]} 40. Rf1 {[%clk 0:00:09.1]} 40... Qc6 {[%clk
0:00:09.4]} 41. Rf4 {[%clk 0:00:07.2]} 41... Qd6 {[%clk 0:00:07.5]} 42. Qc4
{[%clk 0:00:05.4]} 42... Qd1+ {[%clk 0:00:06.9]} 43. Kh2 {[%clk 0:00:05.6]}
43... Qd6 {[%clk 0:00:07.7]} 44. Qd4 {[%clk 0:00:05.3]} 44... Qc6 {[%clk
0:00:05.8]} 45. Qe4 {[%clk 0:00:04.9]} 45... Qc8 {[%clk 0:00:03.9]} 46. Qd4
{[%clk 0:00:02.7]} 46... Qc7 {[%clk 0:00:03.6]} 47. Qc4 {[%clk 0:00:03.3]} 47...
Qb8 {[%clk 0:00:03.6]} 48. Kh1 {[%clk 0:00:03.7]} 48... Qb1+ {[%clk 0:00:03.2]}
49. Rf1 {[%clk 0:00:04.1]} 49... Qc2 {[%clk 0:00:01.7]} 50. a5 {[%clk
0:00:03.5]} 1-0

[Event "Late-Titled-Tuesday-Blitz-January-23-2024"]
[Site "Chess.com"]
[Date "2024.01.23"]
[Round "5"]
[White "FREZZY23"]
[Black "mfwagnerpeixoto"]
[Result "1-0"]
[WhiteElo "2508"]
[BlackElo "2319"]
[TimeControl "180+1"]
[EndTime "14:55:21 PST"]
[Termination "FREZZY23 won by resignation"]

1. d4 {[%clk 0:03:00.9]} 1... Nf6 {[%clk 0:02:58.6]} 2. Nf3 {[%clk 0:02:59.8]}
2... g6 {[%clk 0:02:54.7]} 3. g3 {[%clk 0:02:59.6]} 3... Bg7 {[%clk 0:02:54.5]}
4. Bg2 {[%clk 0:03:00.1]} 4... O-O {[%clk 0:02:46.9]} 5. O-O {[%clk 0:03:00.4]}
5... d5 {[%clk 0:02:42.8]} 6. c4 {[%clk 0:02:59]} 6... dxc4 {[%clk 0:02:41.8]}
7. Na3 {[%clk 0:02:58.1]} 7... c3 {[%clk 0:02:19]} 8. bxc3 {[%clk 0:02:57.4]}
8... c5 {[%clk 0:02:19.6]} 9. dxc5 {[%clk 0:02:56.9]} 9... Qc7 {[%clk
0:02:16.7]} 10. Qd4 {[%clk 0:02:52.1]} 10... Nfd7 {[%clk 0:02:14]} 11. Qc4
{[%clk 0:02:47.2]} 11... Qxc5 {[%clk 0:02:03.6]} 12. Be3 {[%clk 0:02:38.1]}
12... Qxc4 {[%clk 0:02:02.1]} 13. Nxc4 {[%clk 0:02:39]} 13... Bxc3 {[%clk
0:01:58.6]} 14. Rac1 {[%clk 0:02:39.4]} 14... Bg7 {[%clk 0:01:57]} 15. Rfd1
{[%clk 0:02:37.7]} 15... Nc6 {[%clk 0:01:54.6]} 16. Nd4 {[%clk 0:02:29.1]} 16...
Nxd4 {[%clk 0:01:50.5]} 17. Bxd4 {[%clk 0:02:28.1]} 17... Bxd4 {[%clk
0:01:33.6]} 18. Rxd4 {[%clk 0:02:21.7]} 18... Nc5 {[%clk 0:01:33.7]} 19. Na5
{[%clk 0:02:17.2]} 19... Ne6 {[%clk 0:01:31.5]} 20. Rd3 {[%clk 0:02:11.8]} 20...
a6 {[%clk 0:01:19.8]} 21. Nxb7 {[%clk 0:02:05.3]} 21... Bxb7 {[%clk 0:01:16.9]}
22. Bxb7 {[%clk 0:02:06.2]} 22... Ra7 {[%clk 0:01:12.5]} 23. Bc8 {[%clk
0:02:00.5]} 23... a5 {[%clk 0:00:56.2]} 24. Bxe6 {[%clk 0:01:58.3]} 24... fxe6
{[%clk 0:00:57.1]} 25. Rc6 {[%clk 0:01:57.6]} 25... Rf6 {[%clk 0:00:54]} 26. Ra3
{[%clk 0:01:54.9]} 26... a4 {[%clk 0:00:50.9]} 27. Rc4 {[%clk 0:01:54.6]} 27...
Ra5 {[%clk 0:00:47.3]} 28. Rcxa4 {[%clk 0:01:49.2]} 28... Raf5 {[%clk
0:00:44.6]} 29. f3 {[%clk 0:01:45.9]} 29... Rd5 {[%clk 0:00:43.2]} 30. Re4
{[%clk 0:01:44.1]} 30... Rd2 {[%clk 0:00:40.8]} 31. Ra6 {[%clk 0:01:43.6]} 31...
Kf7 {[%clk 0:00:40.7]} 32. a4 {[%clk 0:01:43.1]} 32... Ra2 {[%clk 0:00:39.5]}
33. a5 {[%clk 0:01:42.7]} 33... h5 {[%clk 0:00:32.8]} 34. Ra8 {[%clk 0:01:41.4]}
34... Rf5 {[%clk 0:00:32]} 35. Ra6 {[%clk 0:01:38.6]} 35... Raxa5 {[%clk
0:00:27]} 36. Raxe6 {[%clk 0:01:37.7]} 36... Ra7 {[%clk 0:00:26.4]} 37. Kg2
{[%clk 0:01:31.9]} 37... g5 {[%clk 0:00:23.7]} 38. Rh6 {[%clk 0:01:31.3]} 38...
g4 {[%clk 0:00:19.4]} 39. fxg4 {[%clk 0:01:28.3]} 39... hxg4 {[%clk 0:00:20.3]}
40. Rf4 {[%clk 0:01:28.9]} 40... Rxf4 {[%clk 0:00:19.8]} 41. gxf4 {[%clk
0:01:29.4]} 41... Ra2 {[%clk 0:00:19.2]} 42. Kf2 {[%clk 0:01:29.3]} 42... Ra4
{[%clk 0:00:16.6]} 43. Ke3 {[%clk 0:01:12.2]} 43... Ra3+ {[%clk 0:00:16.3]} 44.
Ke4 {[%clk 0:01:12.4]} 44... Ra2 {[%clk 0:00:16.6]} 45. e3 {[%clk 0:01:11.6]}
45... Rg2 {[%clk 0:00:16.3]} 46. Kf5 {[%clk 0:01:07.4]} 46... g3 {[%clk
0:00:16.5]} 47. hxg3 {[%clk 0:00:58.1]} 47... Rxg3 {[%clk 0:00:17.4]} 48. Rh7+
{[%clk 0:00:58.4]} 48... Ke8 {[%clk 0:00:16.7]} 49. e4 {[%clk 0:00:58.2]} 49...
Ra3 {[%clk 0:00:15.6]} 50. e5 {[%clk 0:00:57.5]} 50... Kd7 {[%clk 0:00:14.6]}
51. Rh1 {[%clk 0:00:54]} 51... Rd3 {[%clk 0:00:13.8]} 52. Rb1 {[%clk 0:00:53.2]}
52... e6+ {[%clk 0:00:12.8]} 53. Kf6 {[%clk 0:00:53.3]} 53... Rd4 {[%clk
0:00:13]} 54. Rb7+ {[%clk 0:00:51.3]} 54... Kc8 {[%clk 0:00:13.1]} 55. Rf7
{[%clk 0:00:48.9]} 55... Rxf4+ {[%clk 0:00:12.7]} 56. Kxe6 {[%clk 0:00:49.4]}
56... Re4 {[%clk 0:00:12.1]} 57. Kd6 {[%clk 0:00:45.1]} 57... Rd4+ {[%clk
0:00:11.2]} 58. Ke7 {[%clk 0:00:45.2]} 58... Rd7+ {[%clk 0:00:09.1]} 59. Kf6
{[%clk 0:00:45.4]} 59... Rd1 {[%clk 0:00:08.6]} 60. e6 {[%clk 0:00:45.7]} 60...
Re1 {[%clk 0:00:06.3]} 61. Rf8+ {[%clk 0:00:40.7]} 61... Kc7 {[%clk 0:00:06.2]}
62. e7 {[%clk 0:00:40.6]} 62... Rf1+ {[%clk 0:00:04.7]} 63. Kg6 {[%clk
0:00:40.4]} 63... Rg1+ {[%clk 0:00:04.7]} 64. Kh5 {[%clk 0:00:40.7]} 64... Rh1+
{[%clk 0:00:03.6]} 65. Kg4 {[%clk 0:00:40.6]} 1-0

[Event "Late-Titled-Tuesday-Blitz-January-23-2024"]
[Site "Chess.com"]
[Date "2024.01.23"]
[Round "5"]
[White "ContrVersia"]
[Black "nindjaxx8"]
[Result "1-0"]
[WhiteElo "2850"]
[BlackElo "2615"]
[TimeControl "180+1"]
[EndTime "14:55:23 PST"]
[Termination "ContrVersia won on time"]

1. c4 {[%clk 0:03:00.9]} 1... e6 {[%clk 0:02:56.6]} 2. Nf3 {[%clk 0:02:58.5]}
2... d5 {[%clk 0:02:57.4]} 3. b3 {[%clk 0:02:58.8]} 3... Nf6 {[%clk 0:02:56.9]}
4. g3 {[%clk 0:02:58.6]} 4... Be7 {[%clk 0:02:57.3]} 5. Bg2 {[%clk 0:02:58.8]}
5... O-O {[%clk 0:02:57.9]} 6. O-O {[%clk 0:02:59.5]} 6... b6 {[%clk 0:02:57.8]}
7. Nc3 {[%clk 0:02:59.5]} 7... Bb7 {[%clk 0:02:57.7]} 8. Bb2 {[%clk 0:02:59.6]}
8... d4 {[%clk 0:02:55.7]} 9. Nb5 {[%clk 0:02:59.6]} 9... c5 {[%clk 0:02:55.5]}
10. e3 {[%clk 0:03:00]} 10... a6 {[%clk 0:02:51.9]} 11. Na3 {[%clk 0:03:00]}
11... d3 {[%clk 0:02:51.2]} 12. Ne5 {[%clk 0:02:54.9]} 12... Bxg2 {[%clk
0:02:33.8]} 13. Kxg2 {[%clk 0:02:55.8]} 13... Ne4 {[%clk 0:01:55.9]} 14. f3
{[%clk 0:02:52.2]} 14... Nd6 {[%clk 0:01:55.6]} 15. Qb1 {[%clk 0:02:41.7]} 15...
Qc8 {[%clk 0:01:45.7]} 16. Qxd3 {[%clk 0:02:36.3]} 16... Rd8 {[%clk 0:01:46.1]}
17. Qe2 {[%clk 0:02:33.2]} 17... Nc6 {[%clk 0:01:43.9]} 18. Nxc6 {[%clk
0:02:27]} 18... Qxc6 {[%clk 0:01:44.8]} 19. Nc2 {[%clk 0:02:23.8]} 19... b5
{[%clk 0:01:42.1]} 20. d3 {[%clk 0:02:24.2]} 20... Rab8 {[%clk 0:01:38.1]} 21.
Bc3 {[%clk 0:02:22.8]} 21... Ne8 {[%clk 0:01:32.9]} 22. Rad1 {[%clk 0:02:13.6]}
22... Bf6 {[%clk 0:01:27.2]} 23. Bxf6 {[%clk 0:01:52.9]} 23... Nxf6 {[%clk
0:01:26.3]} 24. Rd2 {[%clk 0:01:52.8]} 24... h5 {[%clk 0:00:57.7]} 25. Rfd1
{[%clk 0:01:46.2]} 25... h4 {[%clk 0:00:47.1]} 26. d4 {[%clk 0:01:40.7]} 26...
bxc4 {[%clk 0:00:45]} 27. Qxc4 {[%clk 0:01:40.7]} 27... h3+ {[%clk 0:00:44.7]}
28. Kf2 {[%clk 0:01:40.7]} 28... Ng4+ {[%clk 0:00:42.6]} 29. Ke2 {[%clk
0:01:38.8]} 29... Nxh2 {[%clk 0:00:42.2]} 30. e4 {[%clk 0:01:35.3]} 30... Qc7
{[%clk 0:00:31.4]} 31. Kf2 {[%clk 0:01:11.1]} 31... Qe7 {[%clk 0:00:16.9]} 32.
Rh1 {[%clk 0:00:58.3]} 32... Qg5 {[%clk 0:00:17.3]} 33. Ne3 {[%clk 0:00:23.4]}
33... cxd4 {[%clk 0:00:17.7]} 34. Rxd4 {[%clk 0:00:23.5]} 34... Rxd4 {[%clk
0:00:12]} 35. Qxd4 {[%clk 0:00:23]} 35... Rd8 {[%clk 0:00:12.5]} 36. Qb2 {[%clk
0:00:17.5]} 36... Qa5 {[%clk 0:00:11.2]} 37. Rd1 {[%clk 0:00:07.4]} 37... Rxd1
{[%clk 0:00:05.4]} 38. Nxd1 {[%clk 0:00:08.3]} 38... Qb5 {[%clk 0:00:05.3]} 39.
Ne3 {[%clk 0:00:07.4]} 39... a5 {[%clk 0:00:04.1]} 40. Qe2 {[%clk 0:00:06.4]}
40... Qc5 {[%clk 0:00:03.9]} 41. Kg1 {[%clk 0:00:05.6]} 41... Ng4 {[%clk
0:00:02.5]} 42. fxg4 {[%clk 0:00:05.6]} 42... Qd4 {[%clk 0:00:03.4]} 43. Kh2
{[%clk 0:00:05.7]} 43... Qxe4 {[%clk 0:00:03.6]} 44. Qf2 {[%clk 0:00:04.3]}
44... g6 {[%clk 0:00:02]} 45. g5 {[%clk 0:00:04.5]} 45... a4 {[%clk 0:00:02.3]}
46. Qf4 {[%clk 0:00:04.5]} 46... Qd3 {[%clk 0:00:02.6]} 47. Kxh3 {[%clk
0:00:04.6]} 47... axb3 {[%clk 0:00:02.4]} 48. axb3 {[%clk 0:00:05.5]} 48... Qxb3
{[%clk 0:00:03]} 49. Ng4 {[%clk 0:00:06.1]} 49... Qd1 {[%clk 0:00:02.6]} 50.
Nh6+ {[%clk 0:00:06.3]} 50... Kh8 {[%clk 0:00:01.8]} 51. Qxf7 {[%clk 0:00:07.2]}
51... Qh5+ {[%clk 0:00:01]} 52. Kg2 {[%clk 0:00:07.1]} 52... Qe2+ {[%clk
0:00:01.3]} 53. Qf2 {[%clk 0:00:07.1]} 53... Qe4+ {[%clk 0:00:01.6]} 54. Qf3
{[%clk 0:00:07.5]} 1-0